Cogmind - Beta 14 @@@ ROGUE MODE // 2025.03.28 @ 11:25:46 Player: canerib Result: Destroyed self with Grenade Launcher Performance ------------- Evolutions (0) 0 Regions Visited (2) 400 Robots Destroyed (21) 105 Value Destroyed (473) 473 Prototype IDs (0) 0 Alien Tech Used (0) 0 Bonus (0) 0 TOTAL SCORE: 978 Bonus ------- None Cogmind --------- Core Integrity 0/250 Matter 216/300 Energy 241/250 System Corruption 1% Temperature Cool (0) Movement Core (500) Ox9 Location -10/Mines Parts ------- > --- POWER (1) -------- Ion Engine > --- PROPULSION (2) --- (None) > --- UTILITY (2) ------ Large Storage Unit Seismic Detector > --- WEAPON (2) ------- Grenade Launcher > --- INVENTORY (15) --- Light Treads Light Treads Heat Sink Sensor Array Targeting Computer Power Shielding Light Armor Plating Mining Laser Peak State ------------ > --- POWER ------------ Ion Engine > --- PROPULSION ------- Wheel Wheel > --- UTILITY ---------- Large Storage Unit Seismic Detector > --- WEAPON ----------- Medium Laser Medium Laser > --- INVENTORY -------- Ion Engine Light Treads Light Treads Heat Sink Medium Storage Unit Targeting Computer Light Armor Plating Medium Laser Assault Rifle Mining Laser [Rating: 8] Favorites ----------- Power Ion Engine Engine Ion Engine Propulsion Wheel Wheel Wheel Utility Seismic Detector Device Seismic Detector Storage Medium Storage Unit Weapon Medium Laser Energy Gun Medium Laser Ballistic Gun Assault Rifle Launcher Grenade Launcher Build | -11 -10 -10 ------- Run | Yrd Mat Min Slots Evolved . | . . . Power . | . . . Propulsion . | . . . Utility . | . . . Weapon . | . . . Parts Attached 22 | 7 11 4 Power 4 | 1 2 1 Engine 4 | 1 2 1 Core . | . . . Reactor . | . . . Propulsion 6 | 2 3 1 Treads . | . . . Leg . | . . . Wheel 6 | 2 3 1 Hover . | . . . Flight . | . . . Utility 6 | 2 4 . Device 3 | 1 2 . Storage 3 | 1 2 . Processor . | . . . Hackware . | . . . Protection . | . . . Artifact . | . . . Weapon 6 | 2 2 2 Energy Gun 4 | 2 2 . Energy Cannon . | . . . Ballistic Gun 1 | . . 1 Ballistic Cannon . | . . . Launcher 1 | . . 1 Special Weapon . | . . . Impact Weapon . | . . . Slashing Weapon . | . . . Piercing Weapon . | . . . Special Melee Weapon . | . . . Unidentified Prototypes . | . . . Parts Lost 8 | . 1 7 Power 1 | . . 1 Propulsion 3 | . . 3 Utility . | . . . Weapon 4 | . 1 3 Highest Loss Streak 5 | . 1 5 To Critical Strikes . | . . . Average Slot Usage (%) 98 | . 99 96 Engine 13 | . 13 14 Wheel 27 | . 27 26 Device 13 | . 13 14 Storage 14 | . 14 14 Energy Gun 26 | . 27 16 Peak Build Rating 8 | 7 8 8 Average Rating 7 | 5 7 7 On Entrance 5 | . 7 8 Naked Turns . | . . . Heaviest Build 31 | 15 30 31 Greatest Support 20 | 20 20 20 Greatest Overweight (x) 3 | . 2 3 Average Overweight (x) . | . . 1 Largest Inventory Capacity 15 | 8 15 15 Average Capacity 10 | 7 10 15 Most Carried 12 | 5 12 12 Average Carried 8 | 3 9 10 Final Capacity 15 | 8 15 15 Final Carried 12 | 5 12 8 Class Distribution -------------------- 100% | Mutant Dominant Class ---------------- Mutant | -10/Materials Mutant | -10/Mines Resources | -11 -10 -10 ----------- Run | Yrd Mat Min Matter Collected 395 | 260 115 20 Remotely . | . . . Salvage Created 708 | 55 501 152 Parts 37 | 8 25 4 Haulers Intercepted 2 | . 2 . Recyclers Shooed 1 | 1 . . Parts Field Recycled . | . . . Retrieved Matter . | . . . Parts Self-Destructed . | . . . Prevented . | . . . Kills | -11 -10 -10 ------- Run | Yrd Mat Min Combat Hostiles Destroyed 18 | . 11 7 Guns 14 | . 11 3 AOE 3 | . . 3 Classes Destroyed 6 | 1 4 1 Tunneler 4 | 3 . 1 Hauler 2 | . 2 . Operator 2 | . 2 . Swarmer 3 | . 3 . Grunt 10 | . 8 2 Assembled 5 | . . 5 Best Kill Streak 5 | 2 3 5 Combat Bots Only 5 | . 3 5 Max Kills in Single Turn 2 | 1 1 2 Gunslinging . | . . . Exploded 1 | . . 1 Melee . | . . . Uniques/NPCs Destroyed . | . . . Combat | -11 -10 -10 -------- Run | Yrd Mat Min Hostile Shots Fired 74 | . 39 35 Missed 20 | . 13 7 Damage Taken 919 | . 320 599 Core 280 | . 115 165 Absorbed by Shields . | . . . Regen/Repaired (Parts) 10 | . 10 . Core Remaining (%) 100 | 100 . . Volleys Fired 89 | 9 50 30 Largest 2 | 2 2 2 Hottest 100 | 100 100 100 Shots Fired 161 | 18 98 45 Gun 155 | 18 98 39 Cannon . | . . . Launcher 6 | . . 6 Special . | . . . Kinetic 9 | . . 9 Thermal 146 | 18 98 30 Explosive 6 | . . 6 Electromagnetic . | . . . Robot Hit Streak 11 | 2 11 10 Robot Miss Streak 4 | 4 4 2 Penetration Max . | . . . Secondary Targets . | . . . Shots Hit Robots 100 | 7 61 32 Core Hits 48 | 4 31 13 Critical Kills . | . . . Critical Parts Destroyed . | . . . Critical Strikes 6 | 2 1 3 Burn 6 | 2 1 3 Melee Attacks . | . . . Impact . | . . . Slashing . | . . . Piercing . | . . . Sneak Attacks . | . . . Combat Hostiles . | . . . Follow-up Attacks . | . . . Damage Inflicted 1586 | 100 790 696 Guns 1229 | 100 790 339 Cannons . | . . . Explosions 357 | . . 357 Melee . | . . . Ramming . | . . . Kinetic 87 | . . 87 Thermal 1142 | 100 790 252 Explosive 357 | . . 357 Electromagnetic . | . . . Impact . | . . . Slashing . | . . . Piercing . | . . . Highest Corruption 1 | . . 1 Average Corruption 1 | . . 1 Corruption Purged . | . . . Corruption Blocked . | . . . Overload Shots . | . . . Overflow Damage 22 | . . 22 Projectiles . | . . . Explosions 22 | . . 22 Melee . | . . . Knockbacks . | . . . Impact . | . . . Kinetic . | . . . Secondary . | . . . Self-Inflicted Damage 156 | . . 156 Shots 6 | . . 6 Rammed . | . . . Targets Rammed . | . . . Kicked . | . . . Crushed . | . . . Highest Temperature 352 | 234 272 352 Average Temperature 108 | 105 83 190 Received Heat Transfer 237 | . 153 84 Effects 4 | . . 4 Energy Bleed 1 | . . 1 Interference 3 | . . 3 Siege Activations . | . . . Robots Corrupted . | . . . Combat Hostiles . | . . . Parts Fried . | . . . Impact Corruptions . | . . . Robots Melted 1 | . . 1 Combat Hostiles 1 | . . 1 Parts Melted 9 | . 6 3 Heat Transferred 3811 | 444 2405 962 Parts Sabotaged . | . . . Parts Stolen . | . . . Parts Stripped . | . . . Power Chain Reactions . | . . . Alert | -11 -10 -10 ------- Run | Yrd Mat Min Peak Influence 259 | 15 259 155 Initial 92 | . 9 92 Average 85 | 5 85 124 Maximum Alert Level 1 | . 1 . Low Security (%) 90 | 100 88 100 Level 1 9 | . 11 . Level 2 . | . . . Level 3 . | . . . Level 4 . | . . . Level 5 . | . . . High Security . | . . . Max Security . | . . . Squads Dispatched 4 | . 4 . Investigation 1 | . 1 . Extermination . | . . . Reinforcement 3 | . 3 . Assault . | . . . Garrison . | . . . Intercept . | . . . Searches Triggered . | . . . Construction Impeded . | . . . Haulers Reinforced . | . . . Active Scanning Responses . | . . . Cargo Convoy Interrupts . | . . . Stealth | -11 -10 -10 --------- Run | Yrd Mat Min Distress Signals 3 | . 3 . Communications Jammed . | . . . Distress Signals . | . . . Times Spotted 39 | . 28 11 Peak Tracking Total 8 | . 5 8 Tactical Retreats 2 | . 1 1 Traps | -11 -10 -10 ------- Run | Yrd Mat Min Traps Triggered 3 | . 3 . Indirectly . | . . . Trap Hack Attempts . | . . . Triggered . | . . . Disarmed . | . . . Reprogrammed . | . . . Reused . | . . . Traps Extracted . | . . . Installed . | . . . Triggered 1 | . . 1 Machines | -11 -10 -10 ---------- Run | Yrd Mat Min Machines Disabled . | . . . Max in Single Turn . | . . . Machines Repaired . | . . . Machines Dismantled . | . . . Machines Sabotaged . | . . . Overloaded Fab Kills . | . . . Hacking | -11 -10 -10 --------- Run | Yrd Mat Min Machines Accessed 4 | . 4 . Terminals 3 | . 3 . Fabricators . | . . . Repair Stations 1 | . 1 . Recycling Units . | . . . Scanalyzers . | . . . Garrison Access . | . . . Total Hacks 15 | . 15 . Successful 5 | . 5 . Failed 10 | . 10 . Catastrophic 1 | . 1 . Database Lockouts . | . . . Manual 3 | . 3 . Terminals 12 | . 12 . Fabricators . | . . . Repair Stations 3 | . 3 . Recycling Units . | . . . Scanalyzers . | . . . Garrison Access . | . . . Terminal Hacks 3 | . 3 . Alert Level 1 | . 1 . Locate Traps 1 | . 1 . Hauler Manifests 1 | . 1 . Fabricator Hacks . | . . . Repair Station Hacks 2 | . 2 . Scan Component 1 | . 1 . Repair 1 | . 1 . Recycling Unit Hacks . | . . . Scanalyzer . | . . . Garrison Access Hacks . | . . . Unauthorized Hacks . | . . . Terminals . | . . . Fabricators . | . . . Repair Stations . | . . . Recycling Units . | . . . Scanalyzers . | . . . Garrison Access . | . . . Data Cores Recovered . | . . . Used . | . . . Hacking Detections 4 | . 4 . Full Trace Events . | . . . Feedback Events . | . . . Feedback Blocked . | . . . Robot Schematics Acquired . | . . . Robots Built . | . . . Authchips . | . . . Time . | . . . Total Robot Build Rating . | . . . Part Schematics Acquired . | . . . Parts Built . | . . . Authchips . | . . . Time . | . . . Total Part Build Rating . | . . . Parts Repaired 1 | . 1 . Time 26 | . 26 . Parts Recycled . | . . . Recycled Matter . | . . . Retrieved Matter . | . . . Retrieved Components . | . . . Parts Scanalyzed . | . . . Part Schematics Acquired . | . . . Parts Damaged . | . . . Bothacking | -11 -10 -10 ------------ Run | Yrd Mat Min Used RIF Installer . | . . . Robots Hacked . | . . . Non-combat . | . . . Combat . | . . . Robot Hacks Applied . | . . . Relay Couplers Released . | . . . Fabnet Peak Effective % . | . . . Robots Rewired . | . . . Allies Hacked . | . . . Hacks Repelled . | . . . Allies | -11 -10 -10 -------- Run | Yrd Mat Min Total Allies . | . . . Largest Group . | . . . Highest-Rated Group . | . . . Highest-Rated Ally . | . . . Total Orders . | . . . Ally Attacks . | . . . Total Damage . | . . . Kills . | . . . Allies Corrupted . | . . . Allies Melted . | . . . Intel | -11 -10 -10 ------- Run | Yrd Mat Min Robot Analysis Total . | . . . Derelict Logs Recovered 1 | . . 1 Drone Launches . | . . . Drone Recoveries . | . . . Exploration | -11 -10 -10 ------------- Run | Yrd Mat Min Turns Passed 1642 | 95 1362 185 Spaces Moved 705 | 67 540 98 Core 2 | 2 . . Treads . | . . . Legs . | . . . Wheels 703 | 65 540 98 Hover . | . . . Flight . | . . . Fastest Speed 50 | 50 80 95 Average Speed 85 | 79 84 96 Slowest Speed 125 | 80 110 125 Overloaded Moves . | . . . Propulsion Burnouts . | . . . Robots Hopped . | . . . Cave-ins Triggered . | . . . Exploration Rate (%) 39 | 3 88 26 Regions Visited 2 Branch Regions 1 Pre-discovered Areas . | . . . Known Exits Taken . | . . . Unknown Exits Taken 2 | 1 1 . Scrap Searched 1 | . . 1 Spaces Dug . | . . . Terrain Destroyed 30 | . . 30 Melee . | . . . Projectile . | . . . AOE 30 | . . 30 Terrain Rammed . | . . . Walls Destroyed . | . . . Machines Disabled . | . . . Actions | -11 -10 -10 --------- Run | Yrd Mat Min Total 1576 | 87 1345 144 Wait 748 | . 736 12 Move 703 | 66 539 98 Hop . | . . . Pick Up 12 | 5 7 . Fast Attach 12 | 7 5 . Attach 6 | . 2 4 Detach . | . . . Swap 4 | . 4 . Drop 2 | . 2 . Fire 89 | 9 50 30 Melee . | . . . Ram . | . . . Kick . | . . . Crush . | . . . Escape Stasis . | . . . Rewire . | . . . Trap . | . . . Miscellaneous . | . . . Route ------- -11/Scrapyard -10/Materials (discovered 4 exits: [*Mat x2] / [*Min x2]) -10/Mines History --------- Turn | Location | Event 13 | -11/Scrapyard | Discovered new exit (range 16) 96 | -11/Scrapyard | Entered Materials 165 | -10/Materials | Discovered new exit (range 16) 302 | -10/Materials | Discovered new exit (range 7) 306 | -10/Materials | Build established: Mutant 1038 | -10/Materials | Discovered new exit (range 4) 1061 | -10/Materials | Discovered new exit (range 14) 1099 | -10/Materials | Repaired Seismic Detector 1458 | -10/Materials | Entered Mines 1548 | -10/Mines | Learned Materials stockpile data 1567 | -10/Mines | Assembled infested the area 1619 | -10/Mines | Core integrity fell below 50% 1633 | -10/Mines | Core integrity fell below 20% 1643 | -10/Mines | Destroyed self with Grenade Launcher Last Messages --------------- 01579_ System overload, Sealed Doors opened. 01614_ Med. Laser destroyed. 01614_ System corrupted by crushing effect (+1). 01616_ as-55484 destroyed. 01620_ Ion Engine destroyed. 01624_ as-76113 destroyed. 01624_ as-90364 destroyed. 01627_ Destroyed Asb. Hover Unit. 01628_ The unstable cave ceiling collapses. 01633_ Destroyed Asb. Heavy Rifle. 01633_ as-37094 destroyed. 01633_ Wheel destroyed. 01633_ Destroyed Wheel. 01638_ Knocked back. 01640_ Assault Rifle destroyed. 01640_ Destroyed Assault Rifle. 01640_ Wheel destroyed. 01640_ Destroyed Wheel. 01640_ as-06513 destroyed. 01642_ The unstable cave ceiling collapses. Map ----- +----------------------------------------------------+ | ??????????????#%/ #??## ##?????## ## #????????? | | ??????????????### #???###???????#####?###????????? | | ????????????????# ##########?????????????????????? | | ????????????????# #?????????????????????? | | ????????????????#### ##### #?????????????????????? | | ???????????????????# #???# #?????????????????????? | | ???????????????????# #???# #?????????????????????? | | ??????????????????? #???# #?????????????????????? | | ???????????????????###???# ###???????????????????? | | ????????????????????????## ##??????????????????? | | ?????????????????????#### ##?????????????????? | | ????????????????????## #?????????????????? | | ????????????????????# ##????????????????? | | ????????????????????# ##???????????????? | | ???????????????????## ##??????????????? | | ?????????????????### ## #??????????????? | | ????????????????## ##### #??????????????? | | ????????????????# ##???## ##?????????????? | | ????????????????# ##?????# ###???????????? | | ????????????????# #??????# ##??????????? | | ????????????????# ####???# #??????????? | | ????????????????# %# ##### #??????????? | | ????????????????## ##??????????? | | ?????????????????### #???????????? | | ???????????????????### ##???????????? | | ?????????????????????## @ #????????????? | | ?????????????????????# %aa ##????????????? | | ?????????????????????# ## ##?????????????? | | ?????????????????????# # ######??????????????? | | ?????????????????????# ###???????????????????? | | ?????????????????????#!% ##?????????????????????? | | ????????????????????? = #??????????????????????? | | ???????????????????? ??????????????????????? | | ??????????????????? ??????????????????????? | | ??????????????????? ?????????????????????? | | ?????????????????? =% ?????????????????????? | | ?????????????????## ##????????????????????? | | ??????????????????### #?????????????????????? | | ????????????????????## ?????????????????????? | | ?????????????????????# a ?????????????????????? | | ?????????????????????? ??????????????????????? | | ?????????????????????????????????????????????????? | | ?????????????????????????????????????????????????? | | ?????????????????????????????????????????????????? | | ?????????????????????????????????????????????????? | | ?????????????????????????????????????????????????? | | ?????????????????????????????????????????????????? | | ?????????????????????????????????????????????????? | | ?????????????????????????????????????????????????? | | ?????????????????????????????????????????????????? | +----------------------------------------------------+ Best States ------------- Heat Dissipation 25 Energy Generation 10 Energy Capacity 250 Matter Stores 300 Matter Capacity 300 Sight Range 16 Terrain Scan Density 10 Evasion (%) 44 Item Schematics ----------------- None Robot Schematics ------------------ None Fabricated ------------ Nothing Alien Tech Used ----------------- None Achievements -------------- None Challenges ------------ None Game ------ Seed TechZioniteScreen Manual? 0 Play Time 00:12:32 Cumulative 86.4 hours Start 2025.03.28 @ 11:09:14 End 2025.03.28 @ 11:25:46 Sessions 1 Manual Loads 0 Difficulty Rogue Special Mode None Game No. 136 Rogue 136 Adventurer 0 Explorer 0 Win Type - Total 1 Types 1/0/0/0/0/0/0/0/0 Lore% 31 Gallery% 48 Achievement% 41 Wizard Run 0 Options --------- Layout 1 ASCII 1 Keyboard 0 Movement Numpad Keybinds 0 Fullscreen 1 Font 24/Smallcaps Map View 50x35 Zoom Use 0% Tactical HUD 1 Map Filters NONE Filters NONE Steam 1 RUN: 33342012-736f-4cbf-a212-0f9918f7b030